Cogmind - Beta 14 @@@ ROGUE MODE // 2024.10.14 @ 11:51:02 Player: THN-L0C Result: Destroyed by 3A-1FX(R) with Subdweller Beam Cannon Performance ------------- Evolutions (0) 0 Regions Visited (2) 400 Robots Destroyed (41) 205 Value Destroyed (1026) 1026 Prototype IDs (2) 40 Alien Tech Used (0) 0 Bonus (0) 0 TOTAL SCORE: 1671 Bonus ------- None Cogmind --------- Core Integrity 0/250 Matter 201/300 Energy 242/250 System Corruption 0% Temperature Cool (21) Movement Treading (260) Ox1 Location -10/Subcaves Parts ------- > --- POWER (1) -------- Ion Engine > --- PROPULSION (2) --- Spiked Treads Subdweller Monowheel > --- UTILITY (2) ------ Large Storage Unit Makeshift Light Armor Plating > --- WEAPON (2) ------- Spread Laser Improved Light Cannon > --- INVENTORY (15) --- Huge Storage Unit Medium Matter Pod (0) High-capacity Matter Pod (200) Improved Terrain Scanner Seismic Detector Spread Laser Battle Cannon Subdweller Shrapnel Launcher Dirty Datajack (20) Mining Laser Peak State ------------ > --- POWER ------------ Ion Engine > --- PROPULSION ------- Spiked Treads Subdweller Monowheel > --- UTILITY ---------- Large Storage Unit Makeshift Light Armor Plating > --- WEAPON ----------- Improved Light Cannon Improved Light Cannon > --- INVENTORY -------- Huge Storage Unit Medium Matter Pod High-capacity Matter Pod Improved Terrain Scanner Seismic Detector Spread Laser Spread Laser Battle Rifle Improved Light Cannon Subdweller Shrapnel Launcher Dirty Datajack Mining Laser [Rating: 16] Favorites ----------- Power Ion Engine Engine Ion Engine Propulsion Light Treads Treads Light Treads Wheel Subdweller Monowheel Utility Large Storage Unit Device Seismic Detector Storage Large Storage Unit Protection Light Armor Plating Weapon Assault Rifle Energy Gun Spread Laser Ballistic Gun Assault Rifle Ballistic Cannon Improved Light Cannon Special Weapon Mining Laser Build | -11 -10 -10 ------- Run | Yrd Mat Sub Slots Evolved . | . . . Power . | . . . Propulsion . | . . . Utility . | . . . Weapon . | . . . Parts Attached 65 | 7 18 40 Power 6 | 1 2 3 Engine 6 | 1 2 3 Core . | . . . Reactor . | . . . Propulsion 8 | 2 1 5 Treads 5 | 2 1 2 Leg . | . . . Wheel 3 | . . 3 Hover . | . . . Flight . | . . . Utility 28 | 2 11 15 Device 12 | 1 5 6 Storage 2 | 1 1 . Processor . | . . . Hackware . | . . . Protection 14 | . 5 9 Artifact . | . . . Weapon 23 | 2 4 17 Energy Gun 5 | . . 5 Energy Cannon . | . . . Ballistic Gun 7 | 2 2 3 Ballistic Cannon 7 | . . 7 Launcher . | . . . Special Weapon 4 | . 2 2 Impact Weapon . | . . . Slashing Weapon . | . . . Piercing Weapon . | . . . Special Melee Weapon . | . . . Unidentified Prototypes . | . . . Parts Lost 13 | . . 13 Power 1 | . . 1 Propulsion 4 | . . 4 Utility 3 | . . 3 Weapon 5 | . . 5 Highest Loss Streak 3 | . . 3 To Critical Strikes . | . . . Average Slot Usage (%) 99 | . 100 99 Engine 13 | . 14 13 Treads 20 | . 28 15 Wheel 7 | . . 12 Device 8 | . 12 6 Storage 14 | . 14 14 Protection 4 | . 1 7 Energy Gun 3 | . . 6 Ballistic Gun 16 | . 26 9 Ballistic Cannon 6 | . . 11 Peak Build Rating 16 | 7 9 16 Average Rating 10 | 5 8 11 On Entrance 5 | . 7 9 Naked Turns . | . . . Heaviest Build 37 | 15 32 37 Greatest Support 40 | 40 40 40 Greatest Overweight (x) 2 | . . 2 Average Overweight (x) . | . . 1 Largest Inventory Capacity 15 | 8 15 15 Average Capacity 14 | 7 14 15 Most Carried 15 | 2 15 15 Average Carried 11 | . 10 13 Final Capacity 15 | 8 15 15 Final Carried 15 | 2 15 10 Class Distribution -------------------- 88% | Mutant 11% | Scavenger-Mutant Dominant Class ---------------- Mutant | -10/Materials Mutant | -10/Subcaves Resources | -11 -10 -10 ----------- Run | Yrd Mat Sub Matter Collected 2013 | 456 714 843 Remotely . | . . . Salvage Created 1303 | 268 529 506 Parts 87 | 14 41 32 Haulers Intercepted 2 | . 2 . Recyclers Shooed 2 | 1 1 . Parts Field Recycled . | . . . Retrieved Matter . | . . . Parts Self-Destructed 3 | . . 3 Prevented . | . . . Kills | -11 -10 -10 ------- Run | Yrd Mat Sub Combat Hostiles Destroyed 25 | . 10 15 Guns 18 | . 10 8 Cannons 7 | . . 7 Classes Destroyed 12 | 3 5 4 Worker 4 | 2 2 . Builder 1 | . 1 . Tunneler 6 | 5 1 . Hauler 2 | . 2 . Recycler 1 | 1 . . Watcher 2 | . 2 . Swarmer 2 | . 2 . Grunt 8 | . 8 . Sentry 1 | . . 1 Artisan 1 | . . 1 Cobbler 1 | . . 1 Subdweller 14 | . . 14 Best Kill Streak 4 | 4 2 3 Combat Bots Only 3 | . 2 3 Max Kills in Single Turn 1 | 1 1 1 Gunslinging . | . . . Exploded . | . . . Melee . | . . . Uniques/NPCs Destroyed . | . . . Combat | -11 -10 -10 -------- Run | Yrd Mat Sub Hostile Shots Fired 152 | . 44 108 Missed 43 | . 12 31 Damage Taken 2431 | . 388 2043 Core 263 | . 30 233 Absorbed by Shields . | . . . Regen/Repaired (Parts) 81 | . 81 . Core Remaining (%) 100 | 100 . . Volleys Fired 198 | 31 61 106 Largest 2 | 2 2 2 Hottest 130 | 40 100 130 Shots Fired 364 | 62 116 186 Gun 264 | 62 110 92 Cannon 90 | . . 90 Launcher . | . . . Special 10 | . 6 4 Kinetic 320 | 62 110 148 Thermal 44 | . 6 38 Explosive . | . . . Electromagnetic . | . . . Robot Hit Streak 22 | 9 12 22 Robot Miss Streak 9 | 5 3 9 Penetration Max . | . . . Secondary Targets 1 | . 1 . Max Gunslinging Chain 1 | . 1 . Shots Hit Robots 225 | 28 72 125 Core Hits 98 | 9 29 60 Critical Kills . | . . . Critical Parts Destroyed 1 | . 1 . Critical Strikes 4 | . 1 3 Destroy 1 | . 1 . Blast 3 | . . 3 Melee Attacks . | . . . Impact . | . . . Slashing . | . . . Piercing . | . . . Sneak Attacks . | . . . Combat Hostiles . | . . . Follow-up Attacks . | . . . Damage Inflicted 3196 | 358 962 1876 Guns 2153 | 358 898 897 Cannons 979 | . . 979 Explosions . | . . . Melee . | . . . Ramming 64 | . 64 . Kinetic 2770 | 358 898 1514 Thermal 362 | . . 362 Explosive . | . . . Electromagnetic . | . . . Impact . | . . . Slashing . | . . . Piercing . | . . . Highest Corruption . | . . . Average Corruption . | . . . Corruption Purged . | . . . Corruption Blocked . | . . . Overload Shots . | . . . Overflow Damage . | . . . Projectiles . | . . . Explosions . | . . . Melee . | . . . Knockbacks 18 | . . 18 Impact . | . . . Kinetic 18 | . . 18 Secondary . | . . . Self-Inflicted Damage . | . . . Shots . | . . . Rammed 9 | . 9 . Targets Rammed 12 | . 12 . Kicked . | . . . Crushed 3 | . 3 . Highest Temperature 90 | . 62 90 Average Temperature 18 | . 14 24 Received Heat Transfer 396 | . 183 213 Siege Activations . | . . . Robots Corrupted . | . . . Combat Hostiles . | . . . Parts Fried . | . . . Impact Corruptions . | . . . Robots Melted . | . . . Combat Hostiles . | . . . Parts Melted . | . . . Heat Transferred 450 | . . 450 Parts Sabotaged . | . . . Parts Stolen . | . . . Parts Stripped . | . . . Power Chain Reactions . | . . . Alert | -11 -10 -10 ------- Run | Yrd Mat Sub Peak Influence 157 | 40 157 . Initial 26 | . 26 . Average 46 | 18 49 . Maximum Alert Level . | . . . Low Security (%) 100 | 100 100 . Level 1 . | . . . Level 2 . | . . . Level 3 . | . . . Level 4 . | . . . Level 5 . | . . . High Security . | . . . Max Security . | . . . Squads Dispatched 2 | . 2 . Investigation 2 | . 2 . Extermination . | . . . Reinforcement . | . . . Assault . | . . . Garrison . | . . . Intercept . | . . . Searches Triggered . | . . . Construction Impeded . | . . . Haulers Reinforced . | . . . Active Scanning Responses . | . . . Cargo Convoy Interrupts . | . . . Stealth | -11 -10 -10 --------- Run | Yrd Mat Sub Distress Signals 1 | . 1 . Communications Jammed . | . . . Distress Signals . | . . . Times Spotted 46 | . 23 23 Peak Tracking Total 4 | . 4 2 Tactical Retreats 5 | . 2 3 Traps | -11 -10 -10 ------- Run | Yrd Mat Sub Traps Triggered 3 | . 1 2 Indirectly . | . . . Trap Hack Attempts . | . . . Triggered . | . . . Disarmed . | . . . Reprogrammed . | . . . Reused . | . . . Traps Extracted . | . . . Installed . | . . . Triggered . | . . . Machines | -11 -10 -10 ---------- Run | Yrd Mat Sub Machines Disabled 1 | . 1 . Max in Single Turn 1 | . 1 . Machines Repaired . | . . . Machines Dismantled . | . . . Machines Sabotaged . | . . . Overloaded Fab Kills . | . . . Hacking | -11 -10 -10 --------- Run | Yrd Mat Sub Machines Accessed 12 | . 10 2 Terminals 7 | . 7 . Fabricators . | . . . Repair Stations 1 | . 1 . Recycling Units 2 | . 2 . Scanalyzers . | . . . Garrison Access . | . . . Total Hacks 37 | . 31 6 Successful 22 | . 16 6 Failed 15 | . 15 . Catastrophic 2 | . 2 . Database Lockouts . | . . . Manual 20 | . 20 . Terminals 22 | . 22 . Fabricators . | . . . Repair Stations 2 | . 2 . Recycling Units 7 | . 7 . Scanalyzers . | . . . Garrison Access . | . . . Terminal Hacks 10 | . 4 6 Record 5 | . . 5 Robot Analysis 2 | . 2 . Prototype ID Bank 1 | . 1 . Open Door 1 | . . 1 Locate Traps 1 | . 1 . Fabricator Hacks . | . . . Repair Station Hacks 2 | . 2 . Scan Component 1 | . 1 . Repair 1 | . 1 . Recycling Unit Hacks 1 | . 1 . Report Inventory 1 | . 1 . Scanalyzer . | . . . Garrison Access Hacks . | . . . Unauthorized Hacks 9 | . 9 . Terminals 9 | . 9 . Assimilate 1 | . 1 . Botnet 2 | . 2 . Operators 1 | . 1 . Skim 5 | . 5 . Fabricators . | . . . Repair Stations . | . . . Recycling Units . | . . . Scanalyzers . | . . . Garrison Access . | . . . Data Cores Recovered . | . . . Used . | . . . Hacking Detections 9 | . 9 . Full Trace Events 1 | . 1 . Feedback Events . | . . . Feedback Blocked . | . . . Robot Schematics Acquired . | . . . Robots Built . | . . . Authchips . | . . . Time . | . . . Total Robot Build Rating . | . . . Part Schematics Acquired . | . . . Parts Built . | . . . Authchips . | . . . Time . | . . . Total Part Build Rating . | . . . Parts Repaired 1 | . 1 . Time 26 | . 26 . Parts Recycled . | . . . Recycled Matter . | . . . Retrieved Matter . | . . . Retrieved Components . | . . . Parts Scanalyzed . | . . . Part Schematics Acquired . | . . . Parts Damaged . | . . . Bothacking | -11 -10 -10 ------------ Run | Yrd Mat Sub Used RIF Installer . | . . . Robots Hacked . | . . . Non-combat . | . . . Combat . | . . . Robot Hacks Applied . | . . . Relay Couplers Released . | . . . Fabnet Peak Effective % . | . . . Robots Rewired . | . . . Allies Hacked . | . . . Hacks Repelled . | . . . Allies | -11 -10 -10 -------- Run | Yrd Mat Sub Total Allies 1 | . 1 . Largest Group 1 | . 1 1 Highest-Rated Group 10 | . 10 10 Highest-Rated Ally 10 | . 10 10 Total Orders . | . . . Ally Attacks . | . . . Total Damage . | . . . Kills . | . . . Allies Corrupted . | . . . Allies Melted . | . . . Intel | -11 -10 -10 ------- Run | Yrd Mat Sub Robot Analysis Total 2 | . 2 . Derelict Logs Recovered 2 | . . 2 Drone Launches . | . . . Drone Recoveries . | . . . Exploration | -11 -10 -10 ------------- Run | Yrd Mat Sub Turns Passed 5917 | 254 2402 3261 Spaces Moved 2802 | 96 1011 1695 Core 4 | 4 . . Treads 1571 | 92 1011 468 Legs . | . . . Wheels 1227 | . . 1227 Hover . | . . . Flight . | . . . Fastest Speed 50 | 50 160 107 Average Speed 152 | 155 160 147 Slowest Speed 260 | 160 160 260 Overloaded Moves . | . . . Propulsion Burnouts . | . . . Robots Hopped . | . . . Cave-ins Triggered . | . . . Exploration Rate (%) 62 | 7 93 87 Regions Visited 2 Branch Regions 1 Pre-discovered Areas 2 | . 1 1 Known Exits Taken . | . . . Unknown Exits Taken 2 | 1 1 . Scrap Searched 7 | . . 7 Spaces Dug 1 | . 1 . Terrain Destroyed 1 | . 1 . Melee . | . . . Projectile 1 | . 1 . AOE . | . . . Terrain Rammed . | . . . Walls Destroyed . | . . . Machines Disabled . | . . . Actions | -11 -10 -10 --------- Run | Yrd Mat Sub Total 4042 | 135 1657 2250 Wait 914 | . 532 382 Move 2800 | 95 1010 1695 Hop . | . . . Pick Up 35 | 2 17 16 Fast Attach 8 | 7 . 1 Attach 13 | . . 13 Detach 1 | . . 1 Swap 44 | . 18 26 Drop 17 | . 7 10 Fire 198 | 31 61 106 Melee . | . . . Ram . | . . . Kick . | . . . Crush 12 | . 12 . Escape Stasis . | . . . Rewire . | . . . Trap . | . . . Miscellaneous . | . . . Route ------- -11/Scrapyard -10/Materials (discovered 5 exits: *Mat x2 / [*Min x2] / *Sub) -10/Subcaves (discovered 3 exits: *Mat x2 / Rec) History --------- Turn | Location | Event 11 | -11/Scrapyard | Discovered new exit (range 16) 255 | -11/Scrapyard | Entered Materials 313 | -10/Materials | Build established: Mutant 550 | -10/Materials | Discovered new exit (range 8) 644 | -10/Materials | Discovered new exit (range 9) 945 | -10/Materials | Discovered new exit (range 13) 1271 | -10/Materials | Discovered new exit (range 15) 1380 | -10/Materials | Learned Recycling recycling unit intel 1458 | -10/Materials | Learned 2 Storage zone layouts 1526 | -10/Materials | Learned location of Mines (-9) 1632 | -10/Materials | Identified exit to Materials 1664 | -10/Materials | Repaired Lgt. Armor Plating 1690 | -10/Materials | Learned Storage stockpile data 2289 | -10/Materials | Discovered new exit (range 4) 2657 | -10/Materials | Entered Subcaves 2657 | -10/Subcaves | Accompanied by 1 ally 2658 | -10/Subcaves | Identified exit to Recycling 2768 | -10/Subcaves | Learned Materials non-interactive machine intel 2993 | -10/Subcaves | Identified exit to Materials 3153 | -10/Subcaves | Visited Clippyterm 3157 | -10/Subcaves | Learned location of Section 7 (-2) 3157 | -10/Subcaves | Learned Research security intel 3709 | -10/Subcaves | Core integrity fell below 50% 3898 | -10/Subcaves | Curiously followed by a Cobbler waking with a query about "LVR3C" 3991 | -10/Subcaves | Discovered exit to Materials (range 5) 4483 | -10/Subcaves | Shifting Twisted Machinery released Battle Rifle 4536 | -10/Subcaves | Shifting Twisted Machinery released Sub. Shrapnel Launcher 4793 | -10/Subcaves | Ambushed by Subdweller buried in earth 4824 | -10/Subcaves | Lost 3 parts (1p1n1u) 4831 | -10/Subcaves | Build established: Scavenger-Mutant 4832 | -10/Subcaves | Ambushed by Subdweller buried in earth 5133 | -10/Subcaves | Build established: Mutant 5203 | -10/Subcaves | Core integrity fell below 20% 5918 | -10/Subcaves | Destroyed by 3A-1FX(R) with Subdweller Beam Cannon Last Messages --------------- 05283_ VW-0WH(R) destroyed. 05286_ Acquired 36 matter. 05359_ SP-M1E(R) destroyed. 05363_ Battle Rifle destroyed. 05366_ WM-0LM(R) Sub. Beam Cannon blasted off. 05375_ Acquired 37 matter. 05377_ Subatomizers dissect the Disposable Heat Sink. 05380_ Acquired Battle Cannon. 05389_ Subatomizers dissect the Disposable Heat Sink. 05408_ Acquired 60 matter. 05413_ Subatomizers dissect the Disposable Heat Sink. 05551_ Triggered Piercing Trap. 05551_ Spikes shoot up from the floor. 05551_ Critical hit (Impale). 05823_ Triggered Piercing Trap. 05823_ Spikes shoot up from the floor. 05823_ Critical hit (Impale). 05856_ G2-T9L(z): "She is not going to be happy we haven't found any suitable candidates yet." 05911_ 3A-1FX(R) knocked back. Map ----- +----------------------------------------------------+ | ????????????????????????????????????????????# ? | | ????????????????????????????????????????????? ? | | ?????????????????????????????????????????????????? | | ?????????????????????????????????????????????????? | | ?????????????????????????????????????????????????? | | ?????????????????????????????????????????????????? | | ?????????????????????????????????????????????????? | | ?????????????????????????????????????????????????? | | ?????????????????????????????????????????????????? | | ?????????????????????????????????????????????????? | | ?????????????????????????????????????????????????? | | ?????????????????????????????????????????????????? | | ?????????????????????????????????????????????????? | | ?????????????????????????????????????????????????? | | ?????????????????????????????????????????????????? | | ????????????????????????????????????????????????? | | ??????????????????????????##?##?###""???????????# | | ?????????????????????????? # ## """ ????????? | | ?????????????????????????? """" " ????????? | | ?????????????????????????? ??????????# | | ?????????????????????????? ?????????????# ? | | ??????????????????????????# #??????????????#?? | | ??????????????????????????# [ ?????????????????? | | ?????????????????????????## *%#??????????????????? | | ????????????????????????## =#??????????????????? | | ????????????????????????#@ R ##?????????????????? | | ????????????????????###?##;R ##????????????????? | | ?????????????????####"##### % ;#????????????????? | | ?????????????????# ##""##" ##????????????????? | | ?????????????????# """" #?????????????????? | | ?????????????##### " """ "# ##?????????????????? | | ?????????????# """ ### ###??????????????????? | | ?????????????## """## ##? #????????????????????? | | ??????????????## ""####??#/ ????????????????????? | | ???????????????## ""###??#%#????????????????????? | | ????????????????#"" """## #????????????????????? | | ???????????????### """" #????????????????????? | | ???####?????#### #"""" ?????????????????????? | | ???# ####### ## " #### ?????????????????????? | | ####^ ^" ^" #??? "?????????????????????? | | ^ ^" ^### #??? ?????????????????????? | | ] ^ ##??##??? ??????????????????????? | | # "^^ ###???????? ??????????????????????? | | ## ^ ##?????????????????????????????????? | | ?# #######^^##??????????????????????????????????? | | ?# ##?????####???????????????????????????????????? | | ## #????????????????????????????????????????????? | | # ##????????????????????????????????????????????? | | ## #????????????????????????????????????????????? | | ## #????????????????????????????????????????????? | +----------------------------------------------------+ Best States ------------- Heat Dissipation 25 Energy Generation 10 Energy Capacity 250 Matter Stores 300 Matter Capacity 300 Sight Range 16 Terrain Scan Density 10 Armor Coverage 150 Evasion (%) 40 Recoil Reduction 2 Item Schematics ----------------- None Robot Schematics ------------------ None Fabricated ------------ Nothing Alien Tech Used ----------------- None Achievements -------------- None Challenges ------------ None Game ------ Seed LaserExoskeletonDatajack Manual? 0 Play Time 00:26:56 Cumulative 347.2 hours Start 2024.10.14 @ 11:26:31 End 2024.10.14 @ 11:51:02 Sessions 1 Manual Loads 0 Difficulty Rogue Special Mode None Game No. 265 Rogue 265 Adventurer 0 Explorer 0 Win Type - Total 3 Types 1/0/1/1/0/0/0/0/0 Lore% 75 Gallery% 80 Achievement% 64 Wizard Run 0 Options --------- Layout 2 ASCII 0 Keyboard 1 Movement Vi Keybinds 0 Fullscreen 2 Font 32/SmallcapsGlow Map View 77x44 Zoom Use 0% Tactical HUD 1 Map Filters NONE Filters NONE Steam 1 RUN: 76d20433-7e7c-4c1b-8cd9-749159bbe29c